fUST/lending_fUST_20240808
["ID","MTS","AMOUNT","RATE_DAILY","PERIOD"]
[334421671,1723081840767,-1437.56,0.00027798,7]
[334421674,1723081840778,-500.0,0.00027798,7]
[334421676,1723081840790,-5471.2,0.00027798,7]
[334421678,1723081840801,-500.0,0.00027798,7]
[334421680,1723081840811,-554.65,0.00027798,7]
[334421682,1723081840821,-501.01408467,0.00027798,7]
[334421684,1723081840832,-503.14273655,0.00027798,7]
[334421686,1723081840845,-681.738211,0.00027798,7]
[334421687,1723081840854,-681.738211,0.00027798,7]
[334421688,1723081840864,-681.738211,0.00027798,7]
[334421689,1723081840875,-929.41,0.00027798,7]
[334421690,1723081840884,-502.49337936,0.00027798,7]
[334421691,1723081840893,-500.0,0.00027798,7]
[334421692,1723081840903,-681.738211,0.00027798,7]
[334421693,1723081840913,-3016.8,0.00027798,7]
[334421695,1723081840923,-500.0,0.00027798,7]
[334421696,1723081840932,-681.738211,0.00027798,7]
[334421697,1723081840942,-681.738211,0.00027798,7]
[334421698,1723081840952,-500.0,0.00027798,7]
[334421699,1723081840961,-504.21530779,0.00027798,7]
[334421700,1723081840971,-500.0,0.00027798,7]
[334421701,1723081840980,-503.20865657,0.00027798,7]
[334421702,1723081840989,-500.0,0.00027798,7]
[334421703,1723081840999,-502.81125657,0.00027798,7]
[334421704,1723081841008,-500.0,0.00027798,7]
[334421705,1723081841018,-500.0,0.00027798,7]
[334421706,1723081841028,-500.0,0.00027798,7]
[334421707,1723081841038,-151.0,0.00027798,7]
[334421708,1723081841048,-153.901853,0.00027798,7]
[334421709,1723081841057,-1185.41,0.00027798,7]
[334421710,1723081841066,-500.0,0.00027798,7]
[334421711,1723081841076,-500.80689215,0.00027798,7]
[334421712,1723081841089,-502.06173162,0.00027798,7]
[334421713,1723081841099,-500.0,0.00027798,7]
[334421714,1723081841108,-500.0,0.00027798,7]
[334421715,1723081841292,-504.80201644,0.00027798,2]
[334421716,1723081841303,-169.0169841,0.00027798,7]
[334421717,1723081841314,-503.62232853,0.00027798,7]
[334421718,1723081841325,-500.0,0.00027798,7]
[334421719,1723081841340,-2000.0,0.00027799,2]
[334421720,1723081841350,-88888.0,0.00027799,3]
[334421721,1723081841361,-151.0,0.00027799,7]
[334421722,1723081841370,-151.0,0.00027799,7]
[334421723,1723081841381,-315.502849,0.00027799,7]
[334421724,1723081841391,-315.502849,0.00027799,7]
[334421725,1723081841402,-315.502849,0.00027799,7]
[334421726,1723081841412,-315.502849,0.00027799,7]
[334421727,1723081841421,-153.399951,0.00027799,7]
[334421728,1723081841431,-681.738211,0.00027799,7]
[334421729,1723081841441,-681.738211,0.00027799,7]
[334421730,1723081841452,-2035.22,0.000278,2]
[334421731,1723081841462,-10988.9811469,0.00027876,3]
[334421732,1723081841471,-21977.9622938,0.00027878,3]
[334421733,1723081841481,-210.311446,0.00027878,7]
[334421734,1723081841491,-151.0,0.00027878,7]
[334421735,1723081841501,-315.502849,0.00027878,7]
[334421736,1723081841511,-315.502849,0.00027878,7]
[334421737,1723081841520,-681.738211,0.00027878,7]
[334421738,1723081841530,-681.738211,0.00027878,7]
[334421739,1723081841539,-5025.07549651,0.00027884,2]
[334421740,1723081841549,-15044.91923475,0.00027886,21]
[334421741,1723081841559,-622.14,0.00027886,7]
[334421742,1723081841568,-500.0,0.00027886,7]
[334421743,1723081841578,-503.60581434,0.00027886,7]
[334421744,1723081841594,-1219.23,0.00027886,7]
[334421745,1723081841603,-500.0,0.00027886,7]
[334421746,1723081841612,-500.0,0.00027886,7]
[334421747,1723081841622,-500.0,0.00027886,7]
[334421748,1723081841631,-500.0,0.00027886,7]
[334421749,1723081841641,-500.0,0.00027886,7]
[334421750,1723081841650,-501.2002468,0.00027886,7]
[334421751,1723081841660,-500.0,0.00027886,7]
[334421752,1723081841669,-500.0,0.00027886,7]
[334421753,1723081841679,-500.0,0.00027886,7]
[334421754,1723081841688,-500.0,0.00027886,7]
[334421755,1723081841698,-500.0,0.00027886,7]
[334421756,1723081841708,-1107.4,0.00027886,7]
[334421757,1723081841718,-501.54936867,0.00027886,7]
[334421758,1723081841727,-1388.44,0.00027886,7]
[334421759,1723081841737,-500.0,0.00027886,7]
[334421760,1723081841747,-644.23271019,0.00027886,7]
[334421761,1723081841756,-501.39781597,0.00027886,7]
[334421762,1723081841767,-500.60801593,0.00027886,7]
[334421763,1723081841776,-500.0,0.00027886,7]
[334421764,1723081841786,-741.59,0.00027886,7]
[334421765,1723081841795,-500.0,0.00027886,7]
[334421766,1723081841806,-720.31,0.00027886,7]
[334421767,1723081841816,-862.8,0.00027886,7]
[334421768,1723081841825,-811.17,0.00027886,7]
[334421769,1723081841841,-500.0,0.00027886,7]
[334421770,1723081841850,-502.9,0.00027886,7]
[334421771,1723081841860,-1514.25,0.00027886,7]
[334421772,1723081841869,-500.0,0.00027886,7]
[334421773,1723081841878,-503.75988016,0.00027886,7]
[334421774,1723081841887,-500.0,0.00027886,7]
[334421775,1723081841896,-563.94119042,0.00027886,7]
[334421776,1723081841906,-620.17,0.00027886,7]
[334421777,1723081841915,-501.97283445,0.00027886,7]
[334421778,1723081841925,-500.0,0.00027886,7]
[334421779,1723081841934,-500.83939548,0.00027886,7]
[334421780,1723081841944,-531.17,0.00027886,7]
[334421781,1723081841953,-1105.55,0.00027886,7]
[334421782,1723081841962,-1514.46,0.00027886,7]
[334421783,1723081841971,-640.5,0.00027886,7]
[334421784,1723081841980,-477.01324356,0.00027886,7]
[334421785,1723081841989,-500.0,0.00027886,7]
[334421786,1723081841999,-300.77040873,0.00027886,7]
[334421787,1723081842009,-503.98144161,0.00027886,7]
[334421788,1723081842018,-500.75,0.00027886,7]
[334421789,1723081842028,-500.0,0.00027886,7]
[334421790,1723081842038,-500.0,0.00027886,7]
[334421791,1723081842047,-556.37,0.00027886,7]
[334421792,1723081842056,-500.0,0.00027886,7]
[334421793,1723081842065,-942.52,0.00027886,7]
[334421794,1723081842075,-513.73142351,0.00027886,7]
[334421795,1723081842087,-500.0,0.00027886,7]
[334421796,1723081842097,-500.0,0.00027886,7]
[334421797,1723081842106,-500.0,0.00027886,7]
[334421798,1723081842115,-1325.71,0.00027886,7]
[334421799,1723081842124,-500.0,0.00027886,7]
[334421800,1723081842134,-1821.78,0.00027886,7]
[334421801,1723081842144,-500.0,0.00027886,7]
[334421802,1723081842153,-759.2,0.00027886,7]
[334421803,1723081842163,-1373.91,0.00027886,7]
[334421804,1723081842172,-500.0,0.00027886,7]
[334421805,1723081842182,-500.0,0.00027886,7]
[334421806,1723081842191,-500.0,0.00027886,7]
[334421807,1723081842203,-500.0,0.00027886,7]
[334421808,1723081842212,-500.0,0.00027886,7]
[334421809,1723081842221,-1151.0,0.00027886,7]
[334421810,1723081842231,-3997.91,0.00027886,7]
[334421811,1723081842240,-500.0,0.00027886,7]
[334421812,1723081842249,-500.0,0.00027886,7]
[334421813,1723081842258,-500.0,0.00027886,7]
[334421814,1723081842267,-522.16,0.00027886,7]
[334421815,1723081842277,-151.0,0.00027886,7]
[334421816,1723081842286,-500.0,0.00027886,7]
[334421817,1723081842295,-151.0,0.00027886,7]
[334421818,1723081842308,-151.0,0.00027886,7]
[334421819,1723081842318,-500.0,0.00027886,7]
[334421820,1723081842327,-500.0,0.00027886,7]
[334421821,1723081842339,-500.0,0.00027886,7]
[334421822,1723081842349,-500.0,0.00027886,7]
[334421823,1723081842358,-500.0,0.00027886,7]
[334421824,1723081842368,-723.52,0.00027886,7]
[334421825,1723081842378,-642.98,0.00027886,7]
[334421826,1723081842391,-1129.73,0.00027886,7]
[334421827,1723081842401,-807.47,0.00027886,7]
[334421828,1723081842410,-1539.8,0.00027886,7]
[334421829,1723081842420,-2534.95,0.00027886,7]
[334421830,1723081842429,-1054.52,0.00027886,7]
[334421831,1723081842439,-500.0,0.00027886,7]
[334421832,1723081842448,-8435.04,0.00027886,7]
[334421833,1723081842457,-659.33,0.00027886,7]
[334421834,1723081842467,-315.502849,0.00027886,7]
[334421835,1723081842476,-315.502849,0.00027886,7]
[334421836,1723081842485,-315.502849,0.00027886,7]
[334421837,1723081842494,-315.502849,0.00027886,7]
[334421838,1723081842504,-315.502849,0.00027886,7]
[334421839,1723081842513,-315.502849,0.00027886,7]
[334421840,1723081842522,-500.0,0.00027886,7]
[334421841,1723081842531,-1956.76,0.00027886,7]
[334421842,1723081842541,-1098.55,0.00027886,7]
[334421843,1723081842562,-1357.86,0.00027886,7]
[334421844,1723081842572,-422.68775999,0.00027886,7]
[334421845,1723081842584,-500.0,0.00027886,7]
[334421846,1723081842595,-500.0,0.00027886,7]
[334421847,1723081842605,-3092.48,0.00027886,7]
[334421848,1723081842615,-839.99,0.00027886,7]
[334421849,1723081842625,-500.0,0.00027886,7]
[334421850,1723081842636,-2317.27,0.00027886,7]
[334421851,1723081842646,-281.30454022,0.00027886,7]
[334421852,1723081842657,-500.0,0.00027886,7]
[334421853,1723081842667,-500.0,0.00027886,7]
[334421854,1723081842677,-500.0,0.00027886,7]
[334421855,1723081842687,-500.0,0.00027886,7]
[334421856,1723081842697,-681.738211,0.00027886,7]
[334421857,1723081842707,-681.738211,0.00027886,7]
[334421858,1723081842718,-681.738211,0.00027886,7]
[334421859,1723081842727,-500.0,0.00027886,7]
[334421860,1723081842737,-681.738211,0.00027886,7]
[334421861,1723081842747,-681.738211,0.00027886,7]
[334421862,1723081842757,-681.738211,0.00027886,7]
[334421863,1723081842767,-500.0,0.00027886,7]
[334421864,1723081842777,-500.0,0.00027886,7]
[334421865,1723081842787,-500.0,0.00027886,7]
[334421866,1723081842796,-252.97567152,0.00027886,7]
[334421867,1723081842825,-716.38432848,0.00027886,7]
[334421868,1723081842837,-500.0,0.00027886,7]
[334421869,1723081842847,-500.0,0.00027886,7]
[334421870,1723081842857,-500.0,0.00027886,7]
[334421871,1723081842867,-1017.01,0.00027886,7]
[334421872,1723081842877,-5494.49057344,0.00027887,3]
[334421873,1723081842887,-500.0,0.00027887,7]
[334421874,1723081842897,-500.0,0.00027887,7]
[334421875,1723081842907,-500.0,0.00027887,7]
[334421876,1723081842917,-500.0,0.00027887,7]
[334421877,1723081842927,-500.0,0.00027887,7]
[334421878,1723081842938,-500.0,0.00027887,7]
[334421879,1723081842948,-151.0,0.00027887,7]
[334421880,1723081842958,-315.502849,0.00027887,7]
[334421881,1723081842967,-315.502849,0.00027887,7]
[334421882,1723081842977,-681.738211,0.00027887,7]
[334421883,1723081842987,-681.738211,0.00027887,7]
[334421884,1723081842998,-500.0,0.00027887,7]
[334421885,1723081843007,-500.0,0.00027887,7]
[334421886,1723081843017,-500.0,0.00027887,7]
[334421887,1723081843026,-503.94669333,0.00027888,7]
[334421888,1723081843036,-500.0,0.00027888,7]
[334421889,1723081843046,-517.24684752,0.00027888,7]
[334421890,1723081843056,-500.0,0.00027888,7]
[334421891,1723081843067,-500.0,0.00027888,7]
[334421892,1723081843076,-500.0,0.00027888,7]
[334421893,1723081843089,-500.0,0.00027888,7]
[334421894,1723081843098,-500.0,0.00027888,7]
[334421895,1723081843108,-500.0,0.00027888,7]
[334421896,1723081843118,-500.0,0.00027888,7]
[334421897,1723081843128,-500.0,0.00027888,7]
[334421898,1723081843137,-500.0,0.00027888,7]
[334421899,1723081843147,-500.0,0.00027888,7]
[334421900,1723081843157,-461.16518818,0.00027888,7]
[334421901,1723081843166,-500.0,0.00027888,7]
[334421902,1723081843176,-1169.58,0.00027888,7]
[334421904,1723081843186,-689.34,0.00027888,7]
[334421905,1723081843195,-500.0,0.00027888,7]
[334421906,1723081843206,-500.0,0.00027888,7]
[334421907,1723081843216,-500.0,0.00027888,7]
[334421908,1723081843226,-500.0,0.00027888,7]
[334421909,1723081843236,-500.0,0.00027888,7]
[334421910,1723081843246,-500.0,0.00027888,7]
[334421911,1723081843256,-1015.49,0.00027888,7]
[334421912,1723081843266,-643.72,0.00027888,7]
[334421913,1723081843276,-500.0,0.00027888,7]
[334421914,1723081843286,-500.0,0.00027888,7]
[334421915,1723081843296,-500.0,0.00027888,7]
[334421916,1723081843307,-500.0,0.00027888,7]
[334421917,1723081843320,-500.0,0.00027888,7]
[334421918,1723081843329,-1459.01,0.00027888,7]
[334421919,1723081843344,-500.0,0.00027888,7]
[334421921,1723081843354,-500.0,0.00027888,7]
[334421924,1723081843365,-500.0,0.00027888,7]
[334421927,1723081843374,-500.0,0.00027888,7]
[334421930,1723081843384,-500.0,0.00027888,7]
[334421932,1723081843395,-191.28588732,0.00027888,7]
[334421948,1723081843997,159.157315,0.00014247,2]
[334421985,1723081847640,-500.0,0.00027797,7]
[334421987,1723081847649,-528.01679569,0.00027798,7]
[334421989,1723081847660,-500.0,0.00027798,7]
[334421991,1723081847669,-501.57218982,0.00027798,7]
[334421993,1723081847679,-500.0,0.00027798,7]
[334421996,1723081847688,-352.59411268,0.00027888,7]
[334421999,1723081847698,-1128.67,0.00027888,7]
[334422001,1723081847708,-501.94800895,0.00027888,2]
[334422003,1723081847717,-500.0,0.00027888,7]
[334422005,1723081847727,-500.0,0.00027888,7]
[334422007,1723081847737,-500.0,0.00027888,7]
[334422009,1723081847746,-1128.27,0.00027888,7]
[334422011,1723081847756,-500.0,0.00027888,7]
[334422013,1723081847766,-500.0,0.00027888,7]
[334422015,1723081847776,-540.4,0.00027888,7]
[334422017,1723081847786,-505.94080807,0.00027888,7]
[334422019,1723081847795,-534.01658279,0.00027888,7]
[334422021,1723081847804,-500.0,0.00027888,7]
[334422024,1723081847821,-500.0,0.00027888,7]
[334422026,1723081847831,-1062.83,0.00027888,7]
[334422027,1723081847842,-1861.09,0.00027888,7]
[334422030,1723081847852,-500.0,0.00027888,7]
[334422032,1723081847862,-385.15772134,0.00027888,7]
[334422034,1723081847873,-542.29,0.00027888,7]
[334422036,1723081847883,-500.0,0.00027888,7]
[334422038,1723081847892,-500.0,0.00027888,7]
[334422040,1723081847902,-500.0,0.00027888,7]
[334422042,1723081847913,-504.3998226,0.00027888,7]
[334422044,1723081847923,-572.64,0.00027888,7]
[334422046,1723081847933,-646.58352395,0.00027888,7]
[334422048,1723081847943,-500.0,0.00027888,7]
[334422050,1723081847953,-500.0,0.00027888,7]
[334422051,1723081847963,-501.70504991,0.00027888,7]
[334422052,1723081847973,-500.0,0.00027888,7]
[334422053,1723081847982,-500.0,0.00027888,7]
[334422054,1723081847992,-500.0,0.00027888,7]
[334422055,1723081848001,-500.0,0.00027888,7]
[334422056,1723081848011,-502.28087124,0.00027888,7]
[334422057,1723081848021,-853.69,0.00027888,7]
[334422058,1723081848031,-500.0,0.00027888,7]
[334422059,1723081848041,-502.3684994,0.00027888,7]
[334422060,1723081848050,-500.0,0.00027888,7]
[334422061,1723081848060,-500.0,0.00027888,7]
[334422062,1723081848070,-1572.25,0.00027888,7]
[334422063,1723081848080,-501.34344553,0.00027888,7]
[334422064,1723081848090,-500.0,0.00027888,7]
[334422065,1723081848100,-500.0,0.00027888,7]
[334422066,1723081848109,-500.0,0.00027888,7]
[334422067,1723081848119,-500.0,0.00027888,2]
[334422068,1723081848129,-503.56424171,0.00027888,7]
[334422069,1723081848139,-500.0,0.00027888,7]
[334422070,1723081848149,-500.0,0.00027888,7]
[334422071,1723081848159,-500.0,0.00027888,7]
[334422072,1723081848169,-407.18255149,0.00027888,7]
[334422073,1723081848179,-502.50111265,0.00027888,7]
[334422074,1723081848189,-502.56295955,0.00027888,7]
[334422075,1723081848202,-1474.4,0.00027888,7]
[334422076,1723081848212,-500.0,0.00027888,7]
[334422077,1723081848222,-500.0,0.00027888,7]
[334422078,1723081848232,-500.0,0.00027888,7]
[334422079,1723081848242,-500.0,0.00027888,7]
[334422080,1723081848253,-505.1,0.00027888,7]
[334422081,1723081848262,-502.88928156,0.00027888,7]
[334422082,1723081848272,-617.18,0.00027888,7]
[334422083,1723081848282,-500.0,0.00027888,7]
[334422084,1723081848293,-503.19009069,0.00027888,7]
[334422085,1723081848303,-501.6266311,0.00027888,7]
[334422086,1723081848318,-501.79082583,0.00027888,7]
[334422087,1723081848337,-710.45,0.00027888,7]
[334422088,1723081848348,-500.0,0.00027888,7]
[334422089,1723081848357,-500.0,0.00027888,7]
[334422090,1723081848367,-503.41894032,0.00027888,7]
[334422091,1723081848376,-502.99680994,0.00027888,7]
[334422092,1723081848386,-500.0,0.00027888,7]
[334422093,1723081848395,-500.0,0.00027888,7]
[334422094,1723081848405,-503.70615178,0.00027888,7]
[334422095,1723081848414,-500.82651848,0.00027888,7]
[334422096,1723081848424,-671.65,0.00027888,7]
[334422097,1723081848433,-502.95804015,0.00027888,7]
[334422098,1723081848442,-500.0,0.00027888,7]
[334422099,1723081848452,-500.78302506,0.00027888,7]
[334422100,1723081848462,-501.40989065,0.00027888,7]
[334422101,1723081848472,-500.0,0.00027888,7]
[334422102,1723081848481,-500.95223009,0.00027888,7]
[334422103,1723081848491,-501.31017073,0.00027888,7]
[334422104,1723081848500,-500.0,0.00027888,7]
[334422105,1723081848509,-598.82530425,0.00027888,7]
[334422106,1723081848519,-503.03181086,0.00027888,7]
[334422107,1723081848528,-500.73870988,0.00027888,7]
[334422108,1723081848538,-738.56,0.00027888,7]
[334422109,1723081848547,-500.0,0.00027888,7]
[334422110,1723081848556,-1401.28,0.00027888,7]
[334422111,1723081848566,-500.0,0.00027888,7]
[334422112,1723081848575,-500.0,0.00027888,7]
[334422113,1723081848585,-500.0,0.00027888,7]
[334422114,1723081848598,-502.91733036,0.00027888,7]
[334422115,1723081848607,-501.41143588,0.00027888,7]
[334422116,1723081848616,-500.0,0.00027888,7]
[334422117,1723081848625,-500.0,0.00027888,7]
[334422118,1723081848635,-501.84234874,0.00027888,7]
[334422119,1723081848644,-908.22,0.00027888,7]
[334422120,1723081848654,-500.0,0.00027888,7]
[334422121,1723081848663,-501.06667726,0.00027888,7]
[334422122,1723081848672,-503.08604166,0.00027888,7]
[334422123,1723081848682,-500.0,0.00027888,7]
[334422124,1723081848693,-500.0,0.00027888,7]
[334422125,1723081848703,-500.0,0.00027888,7]
[334422126,1723081848713,-500.0,0.00027888,7]
[334422127,1723081848723,-500.0,0.00027888,7]
[334422128,1723081848732,-500.0,0.00027888,7]
[334422129,1723081848742,-1067.42,0.00027888,7]
[334422130,1723081848753,-391.50186474,0.00027888,7]
[334422131,1723081848764,-502.99586332,0.00027888,7]
[334422132,1723081848774,-500.0,0.00027888,7]
[334422133,1723081848783,-500.0,0.00027888,7]
[334422134,1723081848794,-500.0,0.00027888,7]
[334422135,1723081848803,-502.47479917,0.00027888,7]
[334422136,1723081848813,-500.0,0.00027888,7]
[334422137,1723081848823,-298.68379452,0.00027888,7]
[334422138,1723081848832,-502.72787773,0.00027888,7]
[334422139,1723081848843,-501.05065153,0.00027888,7]
[334422140,1723081848852,-570.32,0.00027888,7]
[334422141,1723081848862,-520.67746279,0.00027888,7]
[334422142,1723081848872,-500.0,0.00027888,7]
[334422143,1723081848882,-500.0,0.00027888,7]
[334422144,1723081848891,-500.0,0.00027888,7]
[334422145,1723081848900,-502.44738271,0.00027888,7]
[334422146,1723081848910,-426.53687439,0.00027888,7]
[334422147,1723081848919,-500.0,0.00027888,7]
[334422148,1723081848929,-500.0,0.00027888,7]
[334422149,1723081848939,-1123.34,0.00027888,7]
[334422150,1723081848948,-500.0,0.00027888,7]
[334422151,1723081848957,-252.38112366,0.00027888,7]
[334422152,1723081848967,-500.0,0.00027888,7]
[334422153,1723081848976,-501.48745576,0.00027888,7]
[334422154,1723081848986,-548.81,0.00027888,7]
[334422155,1723081848995,-500.0,0.00027888,7]
[334422156,1723081849004,-500.0,0.00027888,7]
[334422157,1723081849014,-1533.65,0.00027888,7]
[334422158,1723081849023,-500.0,0.00027888,7]
[334422159,1723081849032,-500.0,0.00027888,7]
[334422160,1723081849042,-500.0,0.00027888,7]
[334422161,1723081849051,-500.0,0.00027888,7]
[334422162,1723081849061,-500.72489539,0.00027888,7]
[334422163,1723081849071,-1506.74,0.00027888,7]
[334422164,1723081849081,-500.0,0.00027888,7]
[334422165,1723081849093,-500.0,0.00027888,7]
[334422166,1723081849103,-500.0,0.00027888,7]
[334422167,1723081849113,-500.38337472,0.00027888,7]
[334422168,1723081849122,-870.54,0.00027888,7]
[334422169,1723081849132,-502.18437576,0.00027888,7]
[334422170,1723081849142,-500.0,0.00027888,7]
[334422171,1723081849152,-796.89,0.00027888,7]
[334422172,1723081849162,-500.0,0.00027888,7]
[334422173,1723081849172,-939.58,0.00027888,7]
[334422174,1723081849181,-501.60194198,0.00027888,7]
[334422175,1723081849191,-500.0,0.00027888,7]
[334422176,1723081849200,-500.0,0.00027888,7]
[334422177,1723081849210,-619.9385928,0.00027888,7]
[334422178,1723081849220,-500.0,0.00027888,7]
[334422179,1723081849230,-500.0,0.00027888,7]
[334422180,1723081849239,-1702.31,0.00027888,7]
[334422181,1723081849249,-500.0,0.00027888,7]
[334422182,1723081849258,-500.0,0.00027888,7]
[334422183,1723081849267,-500.0,0.00027888,7]
[334422184,1723081849277,-500.0,0.00027888,7]
[334422185,1723081849286,-628.2,0.00027888,7]
[334422186,1723081849295,-500.0,0.00027888,7]
[334422187,1723081849304,-327.44244481,0.00027888,7]
[334422188,1723081849315,-500.0,0.00027888,7]
[334422189,1723081849326,-333.9882268,0.00027888,7]
[334422190,1723081849336,-500.0,0.00027888,7]
[334422191,1723081849347,-578.99,0.00027888,7]
[334422192,1723081849358,-502.03994995,0.00027888,7]
[334422193,1723081849367,-1002.29,0.00027888,7]
[334422194,1723081849377,-500.0,0.00027888,7]
[334422195,1723081849386,-500.0,0.00027888,7]
[334422196,1723081849397,-500.0,0.00027888,7]
[334422197,1723081849407,-501.95159117,0.00027888,7]
[334422198,1723081849417,-500.97537941,0.00027888,7]
[334422199,1723081849427,-500.0,0.00027888,7]
[334422200,1723081849437,-500.0,0.00027888,7]
[334422201,1723081849446,-500.0,0.00027888,7]
[334422202,1723081849455,-500.0,0.00027888,7]
[334422203,1723081849464,-691.0,0.00027888,7]
[334422204,1723081849473,-504.38259614,0.00027888,7]
[334422205,1723081849482,-509.34756062,0.00027888,7]
[334422206,1723081849492,-727.9,0.00027888,7]
[334422207,1723081849502,-536.77170135,0.00027888,7]
[334422208,1723081849512,-500.0,0.00027888,7]
[334422209,1723081849521,-1897.04,0.00027888,7]
[334422210,1723081849531,-502.3187093,0.00027888,7]
[334422211,1723081849540,-2057.62,0.00027888,7]
[334422212,1723081849549,-615.43,0.00027888,7]
[334422213,1723081849559,-500.0,0.00027888,7]
[334422214,1723081849568,-500.0,0.00027888,7]
[334422215,1723081849578,-501.57437598,0.00027888,7]
[334422216,1723081849590,-501.69477007,0.00027888,7]
[334422217,1723081849599,-500.0,0.00027888,7]
[334422218,1723081849608,-2761.75,0.00027888,7]
[334422219,1723081849617,-151.0,0.00027888,7]
[334422220,1723081849627,-151.0,0.00027888,7]
[334422221,1723081849636,-182.307427,0.00027888,7]
[334422222,1723081849645,-607.66928455,0.00027888,7]
[334422223,1723081849657,-500.50899859,0.00027888,7]
[334422224,1723081849667,-570.2598385,0.00027888,7]
[334422225,1723081849677,-500.0,0.00027888,7]
[334422226,1723081849687,-500.0,0.00027888,7]
[334422227,1723081849696,-500.0,0.00027888,7]
[334422228,1723081849706,-1126.34,0.00027888,7]
[334422229,1723081849717,-500.0,0.00027888,7]
[334422230,1723081849727,-500.0,0.00027888,7]
[334422231,1723081849736,-621.78,0.00027888,7]
[334422232,1723081849747,-500.0,0.00027888,7]
[334422233,1723081849758,-500.0,0.00027888,7]
[334422234,1723081849767,-500.0,0.00027888,7]
[334422235,1723081849777,-545.38761943,0.00027888,7]
[334422236,1723081849786,-500.86169782,0.00027888,7]
[334422237,1723081849796,-500.0,0.00027888,7]
[334422238,1723081849806,-500.0,0.00027888,7]
[334422239,1723081849815,-500.0,0.00027888,7]
[334422240,1723081849824,-500.0,0.00027888,7]
[334422241,1723081849834,-500.0,0.00027888,7]
[334422242,1723081849845,-629.72,0.00027888,7]
[334422243,1723081849854,-500.0,0.00027888,7]
[334422244,1723081849863,-500.0,0.00027888,7]
[334422245,1723081849873,-545.00943956,0.00027888,7]
[334422246,1723081849882,-546.43,0.00027888,7]
[334422247,1723081849891,-315.502849,0.00027888,7]
[334422248,1723081849900,-315.502849,0.00027888,7]
[334422249,1723081849910,-315.502849,0.00027888,7]
[334422250,1723081849920,-200.79492183,0.00027888,7]
[334422251,1723081849929,-315.502849,0.00027888,7]
[334422252,1723081849939,-315.502849,0.00027888,7]
[334422253,1723081849948,-315.502844,0.00027888,7]
[334422254,1723081849958,-500.0,0.00027888,7]
[334422255,1723081849967,-500.91344807,0.00027888,7]
[334422256,1723081849977,-500.7392906,0.00027888,7]
[334422257,1723081849986,-500.0,0.00027888,7]
[334422258,1723081849995,-500.0,0.00027888,7]
[334422259,1723081850004,-500.0,0.00027888,7]
[334422260,1723081850013,-506.38784202,0.00027888,7]
[334422261,1723081850023,-500.74135366,0.00027888,7]
[334422262,1723081850032,-500.0,0.00027888,7]
[334422263,1723081850041,-500.90200962,0.00027888,7]
[334422264,1723081850051,-500.0,0.00027888,7]
[334422265,1723081850061,-500.0,0.00027888,7]
[334422266,1723081850071,-505.11541171,0.00027888,7]
[334422267,1723081850081,-501.29149886,0.00027888,7]
[334422268,1723081850093,-500.0,0.00027888,7]
[334422269,1723081850102,-501.92720073,0.00027888,7]
[334422270,1723081850111,-500.0,0.00027888,7]
[334422271,1723081850120,-501.59413079,0.00027888,7]
[334422272,1723081850129,-500.0,0.00027888,7]
[334422273,1723081850138,-500.0,0.00027888,7]